bitfinex/quotes_ETHUSD_20260106
["timestamp","ask_amount","ask_price","bid_price","bid_amount"]
[1767710178962,1e-08,3298.6,3296.7,9.10000908]
[1767710178963,1e-08,3298.6,3296.8,0.70200962]
[1767710179147,1e-08,3298.6,3296.9,1.75120187]
[1767710179342,1e-08,3298.6,3297.0,12.15048375]
[1767710179542,1e-08,3298.6,3297.0,10.84943278]
[1767710180366,1e-08,3298.6,3297.1,0.771]
[1767710180569,1e-08,3298.6,3297.0,3.03306035]
[1767710180570,0.28122261,3298.5,3297.0,3.03306035]
[1767710180741,0.31911977,3298.4,3297.1,0.40132622]
[1767710181066,0.28122261,3298.3,3296.9,3.03308284]
[1767710181438,3.03204875,3298.1,3296.9,3.03308284]
[1767710182048,0.28128762,3298.0,3296.9,3.03308284]
[1767710182254,3.03204875,3298.1,3296.5,0.01824235]
[1767710182255,6.0640975,3298.1,3296.7,3.03331194]
[1767710182453,3.199,3297.9,3296.7,3.63999416]
[1767710182679,1.68066338,3298.0,3296.7,3.63999416]
[1767710182851,1.68066338,3297.8,3296.7,0.60668222]
[1767710183044,0.28137506,3297.7,3295.6,0.001]
[1767710183244,1.96203844,3297.6,3295.6,0.001]
[1767710183494,9.09835317,3297.3,3295.6,0.001]
[1767710183656,0.28137506,3297.2,3295.6,0.001]
[1767710183857,1.68066338,3297.0,3295.6,0.001]
[1767710184074,1.96203844,3296.9,3295.6,0.001]
[1767710184242,0.28137506,3296.8,3295.6,0.001]
[1767710184441,1.96203844,3296.7,3295.4,0.001]
[1767710184656,0.28137506,3296.6,3295.4,0.001]
[1767710184991,1.68066338,3297.9,3295.4,0.001]
[1767710185193,1.68066338,3296.8,3294.3,1.73200938]
[1767710185388,6.06685676,3296.6,3294.5,0.771]
[1767710185574,9.10028514,3296.6,3294.6,3.03526983]
[1767710185886,10.78094852,3296.6,3294.6,3.03526983]
[1767710186086,10.78094852,3296.6,3294.7,0.30352698]
[1767710186267,7.74752014,3296.6,3294.7,0.30352698]
[1767710186659,10.78094852,3296.6,3294.7,0.30352698]
[1767710187162,7.74752014,3296.6,3294.7,0.30352698]
[1767710187392,9.10083726,3296.4,3294.7,0.30352698]
[1767710187688,9.10083726,3296.4,3294.6,3.03524959]
[1767710187893,6.06722484,3296.4,3294.7,3.0351777]
[1767710188093,9.10083726,3296.4,3293.9,0.01824235]
[1767710188296,1.68066338,3296.3,3294.1,3.03565712]
[1767710188464,1.69890573,3296.3,3294.1,3.03570652]
[1767710188824,1.69890573,3296.3,3293.6,1.73200938]
[1767710188825,1.68066338,3296.2,3294.2,0.30357065]
[1767710189001,1.68066338,3296.2,3294.0,0.771]
[1767710189213,0.79,3296.5,3294.2,1.73200938]
[1767710189493,0.79,3296.5,3293.6,0.05]
[1767710189494,1.68066338,3296.2,3293.9,0.771]
[1767710189697,1.68066338,3296.2,3293.8,0.01824235]
[1767710189982,1.68066338,3296.2,3293.9,0.771]
[1767710190191,1.68066338,3296.2,3294.0,0.771]
[1767710190391,1.68066338,3296.2,3294.5,0.001]
[1767710190805,6.0674089,3296.3,3294.5,0.001]
[1767710191102,0.79,3296.2,3294.5,0.001]
[1767710191491,6.06777706,3296.1,3294.6,6.07053966]
[1767710192159,6.85764252,3296.2,3294.6,6.07053966]
[1767710192817,3.82382126,3296.2,3294.6,6.07053966]
[1767710192990,6.85764252,3296.2,3294.6,6.84153966]
[1767710193324,6.85764252,3296.2,3294.5,0.01924235]
[1767710193325,14.81502579,3296.2,3294.5,0.001]
[1767710193510,9.10194174,3296.0,3294.5,0.001]
[1767710194340,1.88974075,3295.9,3294.5,0.001]
[1767710194799,1.92766665,3295.9,3293.8,3.03594961]
[1767710194985,1.92766665,3295.9,3293.8,6.07195665]
[1767710194986,1.88974075,3295.9,3293.8,6.07195665]
[1767710195189,1.88974075,3295.7,3293.9,0.91079899]
[1767710195630,1.88974075,3295.5,3293.9,0.91079899]
[1767710195789,1.88974075,3295.5,3293.3,3.03642262]
[1767710195995,1.88974075,3295.5,3292.9,0.001]
[1767710196521,1.88974075,3295.3,3292.9,0.001]
[1767710196724,1.88974075,3295.3,3293.1,0.01824235]
[1767710196893,0.791,3295.2,3293.7,3.03607525]
[1767710197088,0.791,3295.2,3293.8,0.30360753]
[1767710197291,6.06814526,3295.9,3294.2,0.01824235]
[1767710197494,4.92349626,3296.3,3294.2,0.01824235]
[1767710197495,4.92358788,3296.2,3294.3,0.771]
[1767710197716,1.88974075,3295.9,3294.3,3.03553465]
[1767710197898,3.99,3295.8,3294.3,3.03553465]
[1767710198098,1.88974075,3295.9,3294.4,0.60711064]
[1767710198296,1.88974075,3295.9,3293.9,3.03589583]
[1767710198522,1.9276678,3295.8,3294.0,3.03573391]
[1767710198721,1.9276678,3295.8,3293.8,0.771]
[1767710198722,3.199,3295.6,3293.8,0.771]
[1767710198890,3.199,3295.6,3293.7,3.03604829]
[1767710198891,0.03793051,3295.5,3293.7,3.03604829]
[1767710199093,0.03793051,3295.5,3293.7,0.771]
[1767710199493,0.80924235,3295.7,3293.8,6.07201252]
[1767710199494,3.199,3295.3,3293.8,6.07201252]
[1767710199724,3.03453298,3295.4,3293.8,6.07201252]
[1767710199896,3.03453298,3295.4,3293.8,3.03600548]
[1767710200100,0.03793281,3295.3,3293.9,0.38070055]
[1767710200309,3.03445862,3295.5,3293.8,0.771]
[1767710200508,6.06891724,3295.5,3293.8,0.771]
[1767710200722,6.06891724,3295.5,3293.7,6.07219064]
[1767710200723,0.03793166,3295.4,3293.9,0.771]
[1767710200926,12.30237586,3295.5,3294.0,0.771]
[1767710201134,0.03793166,3295.4,3293.3,1.84721005]
[1767710201323,0.03793281,3295.3,3293.6,3.03613137]
[1767710201837,3.199,3295.1,3293.4,0.771]
[1767710202036,0.03793626,3295.0,3293.4,0.771]
[1767710202248,4.02793626,3295.0,3293.5,0.001]
[1767710202537,1.9079831,3294.9,3293.5,0.001]
[1767710202736,1.92767931,3294.8,3293.5,0.001]
[1767710203042,1.92767931,3294.8,3292.1,0.01824235]
[1767710203043,1.9079831,3294.2,3291.9,1.84721005]
[1767710203246,1.9079831,3294.2,3291.7,3.03788281]
[1767710203247,0.01824235,3293.7,3291.7,3.03788281]
[1767710203414,3.199,3294.1,3291.6,3.03796115]
[1767710203415,0.791,3293.6,3291.6,3.03796115]
[1767710203602,0.791,3293.6,3291.5,1.84721005]
[1767710203603,0.791,3293.6,3291.5,4.88524995]
[1767710203806,9.10885074,3293.5,3291.6,0.771]
[1767710204026,9.10885074,3293.5,3291.7,0.26182101]
[1767710204341,3.03628358,3293.5,3291.7,0.26182101]
[1767710204514,6.07256716,3293.5,3291.7,0.26182101]
[1767710204843,3.03587468,3294.0,3291.7,0.26182101]
[1767710204844,0.791,3294.2,3291.9,1.84721005]
[1767710205350,0.791,3294.2,3292.0,0.771]
[1767710205500,0.791,3294.2,3292.1,2.10903106]
[1767710205704,0.791,3294.2,3292.1,2.12727341]
[1767710205907,6.07146108,3294.1,3292.2,6.84596506]
[1767710206125,6.07146108,3294.1,3292.2,6.07496506]
[1767710206344,6.07146108,3294.1,3292.3,1.59122385]
[1767710207151,3.03573054,3294.1,3292.3,1.59122385]
[1767710207305,0.002,3295.2,3292.4,1.8654524]
[1767710207506,0.791,3294.9,3292.7,1.84721005]
[1767710207924,6.07017116,3294.8,3292.8,9.11078715]
[1767710208128,3.82602155,3294.9,3293.0,1.84721005]
[1767710208326,6.8610431,3294.9,3293.1,2.61821005]
[1767710208556,0.03793856,3294.8,3293.2,0.771]
[1767710209023,0.03793856,3294.8,3292.9,1.09579972]
[1767710209355,0.03793856,3294.8,3293.0,1.48796578]
[1767710209555,0.03793856,3294.8,3293.0,0.71696578]
[1767710209754,0.03793856,3294.8,3293.1,0.771]
[1767710209958,0.03793856,3294.8,3293.2,6.07312036]
[1767710210132,0.791,3294.9,3293.2,9.10968054]
[1767710210451,3.03673211,3295.2,3293.3,2.8352781]
[1767710211138,6.07146422,3295.2,3293.3,2.8352781]
[1767710211318,9.14413029,3295.2,3293.3,2.8352781]
[1767710211519,9.10619633,3295.2,3293.3,0.98806805]
[1767710211754,15.17566055,3295.2,3293.3,0.98806805]
[1767710212048,1.9079831,3294.9,3292.6,3.037108]
[1767710212251,1.9079831,3294.7,3292.6,0.771]
[1767710212454,1.9079831,3294.7,3291.4,0.01824235]
[1767710212455,0.01824235,3294.0,3291.5,3.03804058]
[1767710212657,0.01824235,3294.0,3291.6,0.30380406]
[1767710212658,0.01824235,3293.7,3291.6,0.30380406]
[1767710212825,0.01824235,3293.4,3291.2,0.771]
[1767710213027,0.01824235,3293.4,3290.5,1.84721005]
[1767710213028,0.01824235,3293.2,3290.7,0.771]
[1767710213242,0.28130901,3293.1,3290.7,0.771]
[1767710213429,0.28130901,3293.1,3291.4,3.03816351]
[1767710213746,0.28130901,3293.1,3291.4,0.60764892]
[1767710213949,0.28130901,3293.1,3291.2,3.03840457]
[1767710214155,6.0734892,3293.0,3290.9,3.03866228]
[1767710214459,9.1102338,3293.0,3290.8,6.07754952]
[1767710214656,6.0734892,3293.0,3290.8,9.11632428]
[1767710214826,6.0734892,3293.0,3290.9,0.98873243]
[1767710215026,3.0367446,3293.0,3291.0,1.84721005]
[1767710215630,6.0734892,3293.0,3291.0,1.84721005]
[1767710215830,9.1102338,3293.0,3291.1,0.772]
[1767710216041,1.88974075,3292.9,3291.1,0.772]
[1767710216268,3.0367446,3293.0,3291.2,3.03840544]
[1767710216628,1.94108121,3292.9,3291.2,3.03840544]
[1767710216862,1.94108121,3292.9,3291.1,3.81042612]
[1767710216863,0.01824235,3293.0,3291.1,3.03847121]
[1767710217527,9.10995717,3293.1,3291.1,6.07696897]
[1767710217528,6.07330478,3293.1,3291.1,6.07696897]
[1767710217840,6.86430478,3293.1,3291.2,0.6076969]
[1767710218359,6.86430478,3293.1,3291.3,6.07662624]
[1767710218763,0.01824235,3294.0,3291.4,1.86971694]
[1767710218976,0.16,3294.6,3291.3,9.11493936]
[1767710218977,1.07235115,3293.9,3291.6,1.86971694]
[1767710219180,0.791,3293.9,3291.8,1.86971694]
[1767710220332,0.791,3293.9,3291.7,0.28423828]
[1767710220333,0.791,3293.9,3292.0,1.86971694]
[1767710220529,3.03491927,3295.0,3291.9,12.16927971]
[1767710220530,0.002,3294.9,3292.9,1.88795929]
[1767710220774,0.002,3294.9,3293.1,1.86971694]
[1767710221066,3.03700955,3294.9,3293.1,1.88795929]
[1767710221255,3.03700955,3294.9,3293.2,0.26599593]
[1767710221638,0.03793856,3294.8,3293.2,0.26599593]
[1767710221837,0.03793856,3294.8,3292.3,0.16]
[1767710221838,0.03793856,3294.8,3292.9,0.772]
[1767710222037,6.0720191,3294.9,3292.9,2.75596573]
[1767710222569,0.002,3294.9,3293.1,1.98396573]
[1767710223263,0.03793856,3294.8,3293.2,0.772]
[1767710223568,0.002,3294.9,3293.2,0.772]
[1767710223769,0.002,3294.9,3293.3,0.27559657]
[1767710223943,0.002,3294.9,3293.6,0.01824235]
[1767710224278,0.002,3294.9,3293.8,1.98396573]
[1767710224573,0.002,3294.9,3293.9,3.80791487]
[1767710224730,0.002,3294.9,3293.9,0.772]
[1767710224927,0.002,3294.9,3294.0,0.38079688]
[1767710225363,0.002,3294.9,3293.7,3.03604188]
[1767710225560,0.002,3294.9,3293.1,5.03881458]
[1767710225561,0.28169042,3294.8,3293.1,3.03657814]
[1767710225765,0.03793972,3294.7,3293.0,0.772]
[1767710225962,0.002,3294.9,3293.0,2.75596573]
[1767710226164,0.002,3294.9,3293.2,0.01824235]
[1767710226386,6.07017116,3294.8,3293.1,2.2595623]
[1767710226556,0.28169404,3294.7,3292.4,1.98396573]
[1767710226770,0.002,3294.9,3293.2,6.07312036]
[1767710226934,0.002,3294.9,3293.3,2.77420808]
[1767710227132,0.002,3294.9,3293.3,2.00220808]
[1767710227364,0.03793856,3294.8,3293.4,0.80753284]
[1767710227565,0.03793856,3294.8,3293.2,3.0365501]
[1767710227776,0.28166923,3294.7,3293.1,0.772]
[1767710227941,0.03794087,3294.6,3293.1,0.772]
[1767710228142,0.03793856,3294.8,3292.6,1.98396573]
[1767710228369,0.03793856,3294.8,3291.4,3.03821032]
[1767710228370,12.14107932,3294.6,3292.7,0.772]
[1767710228571,0.31973866,3294.5,3292.5,3.03714427]
[1767710228890,0.31973866,3294.5,3292.3,0.772]
[1767710228891,0.28179664,3294.4,3292.3,0.772]
[1767710229181,0.03794432,3294.3,3292.3,3.80933279]
[1767710229469,1.07279664,3294.2,3292.3,1.45668344]
[1767710229676,0.31974327,3294.1,3292.4,3.03727186]
[1767710229874,1.86924701,3293.9,3292.3,1.45668344]
[1767710230075,2.18899373,3293.8,3291.9,3.03767528]
[1767710230242,2.18899373,3293.8,3291.7,0.26599593]
[1767710230243,1.86924701,3293.6,3291.7,0.26599593]
[1767710230570,3.03628478,3293.5,3291.8,11.09752062]
[1767710230758,3.03610652,3293.7,3291.8,11.11576297]
[1767710230935,3.03591555,3293.9,3292.0,0.01824235]
[1767710231136,6.0718311,3293.9,3292.1,0.772]
[1767710231367,3.03591555,3293.9,3292.1,0.772]
[1767710231567,6.0718311,3293.9,3292.1,0.772]
[1767710231754,0.28200926,3293.8,3291.9,3.12214162]
[1767710231943,0.03795124,3293.7,3292.0,1.69360872]
[1767710232334,9.14569558,3293.9,3292.1,3.0375748]
[1767710232534,0.31998884,3293.8,3292.0,0.92160872]
[1767710232749,0.31998884,3293.8,3291.1,1.98396573]
[1767710232750,0.28203876,3293.7,3291.1,1.98396573]
[1767710233062,1.92544175,3293.6,3291.1,1.98396573]
[1767710233364,2.15128577,3293.5,3291.2,0.772]
[1767710233565,1.09128111,3293.4,3291.2,0.772]
[1767710233865,2.15128577,3293.3,3291.2,0.772]
[1767710234086,1.86924701,3293.1,3290.6,3.03894889]
[1767710234388,1.88748936,3292.9,3290.9,3.03865883]
[1767710234675,1.88748936,3292.9,3290.7,3.81078284]
[1767710234676,10.18382591,3292.8,3290.7,3.81078284]
[1767710234873,0.28203876,3292.7,3290.8,3.03877476]
[1767710235074,0.28203876,3292.6,3290.9,0.38107748]
[1767710235278,0.28203876,3292.5,3290.7,3.03877597]
[1767710235491,9.90178715,3292.8,3290.7,3.03877597]
[1767710235647,0.28182888,3292.7,3290.7,3.03877597]
[1767710235850,1.07282888,3292.6,3290.7,3.03877597]
[1767710236090,1.07282888,3292.6,3290.6,0.772]
[1767710236091,0.791,3292.6,3290.8,0.3810776]
[1767710236284,1.86924701,3292.4,3289.9,3.03956313]
[1767710236578,7.94402755,3292.3,3290.0,0.772]
[1767710236778,10.98141782,3292.3,3290.1,9.11826387]
[1767710236984,1.86924701,3292.2,3290.1,6.07884258]
[1767710237174,1.86924701,3292.0,3290.2,0.68508426]
[1767710237372,1.86924701,3291.8,3290.1,6.07884258]
[1767710237575,1.86924701,3291.8,3289.6,3.03986736]
[1767710237869,1.86924701,3291.8,3289.9,3.03958682]
[1767710238068,1.86924701,3291.8,3290.0,3.03951065]
[1767710238609,3.03794391,3291.7,3289.8,6.07939692]
[1767710238888,3.03786146,3291.8,3289.9,2.66910542]
[1767710239267,6.07572292,3291.8,3290.0,0.772]
[1767710239652,9.11358438,3291.8,3289.9,0.68513969]
[1767710239879,9.11358438,3291.8,3290.0,0.001]
[1767710240183,12.15144584,3291.8,3290.0,0.001]
[1767710240385,0.01824235,3291.2,3289.5,0.001]
[1767710240546,9.11687838,3290.6,3287.9,3.04145503]
[1767710240751,0.792,3290.5,3288.1,0.772]
[1767710241157,0.01824235,3290.4,3288.1,0.772]
[1767710241364,1.88748936,3290.4,3288.0,0.30596974]
[1767710241584,1.88748936,3290.4,3287.9,3.04145503]
[1767710241585,0.01824235,3289.8,3287.7,0.001]
[1767710241782,0.792,3289.7,3287.7,0.001]
[1767710241984,1.86924701,3289.5,3287.7,0.001]
[1767710242514,0.792,3289.4,3287.7,0.001]
[1767710242677,9.12048156,3289.3,3287.7,0.001]
[1767710242877,0.792,3289.2,3287.7,0.001]
[1767710243973,6.08032104,3289.3,3287.7,0.001]
[1767710244208,3.04016052,3289.3,3287.7,0.001]
[1767710244508,3.8320973,3289.4,3287.7,0.001]
[1767710244708,3.8320973,3289.4,3287.7,6.0842801]
[1767710244880,0.792,3289.4,3287.8,0.68562801]
[1767710245710,3.0562951,3290.1,3288.0,0.01824235]
[1767710245892,0.792,3290.0,3288.1,0.773]
[1767710246493,0.792,3289.9,3288.1,0.773]
[1767710246691,0.792,3290.0,3288.2,6.08235508]
[1767710246884,0.792,3290.0,3288.3,0.68553551]
[1767710247311,0.01685863,3290.1,3288.3,0.70377786]
[1767710247513,1e-08,3290.1,3288.9,2.00220808]
[1767710247688,0.792,3291.3,3289.1,0.01824235]
[1767710248017,0.792,3291.2,3289.1,0.01824235]
[1767710248190,0.792,3291.2,3289.3,2.00220808]
[1767710248395,0.792,3291.2,3289.5,0.01824235]
[1767710248691,0.792,3291.8,3289.8,6.07939692]
[1767710248891,0.792,3292.0,3289.9,2.00220808]
[1767710249102,0.792,3292.0,3290.1,2.00220808]
[1767710249319,0.792,3292.0,3290.2,0.97322081]
[1767710249522,0.792,3292.0,3290.3,0.773]
[1767710249892,6.07459602,3292.4,3290.3,0.79124235]
[1767710250086,0.792,3292.3,3290.3,0.79124235]
[1767710250913,3.82941146,3292.3,3290.5,0.01824235]
[1767710251221,3.82941146,3292.3,3290.4,11.10139824]
[1767710251222,0.03796853,3292.2,3290.6,1.88496406]
[1767710251720,6.86682292,3292.3,3290.6,1.11196406]
[1767710252017,0.05621088,3292.2,3290.1,3.03936369]
[1767710252219,12.94164584,3292.3,3290.1,3.03936369]
[1767710252389,0.792,3292.2,3290.3,3.0391956]
[1767710252588,6.07482292,3292.3,3290.3,6.07843214]
[1767710252821,0.002,3291.7,3290.5,3.03905181]
[1767710253122,0.002,3291.7,3289.9,0.01824235]
[1767710253123,0.792,3291.6,3289.7,3.03978122]
[1767710253422,0.0379766,3291.5,3289.5,0.20204504]
[1767710253621,0.03797776,3291.4,3289.5,0.20204504]
[1767710253797,0.002,3291.7,3289.5,2.21584731]
[1767710254004,0.794,3291.7,3290.4,3.03913776]
[1767710254320,0.794,3291.7,3290.4,6.07828193]
[1767710254523,0.002,3291.7,3290.4,9.1174261]
[1767710254728,0.002,3291.7,3290.4,11.13122837]
[1767710255039,0.792,3291.6,3289.9,3.03951981]
[1767710255331,0.002,3291.7,3290.0,2.39505425]
[1767710255535,0.002,3291.7,3290.3,2.03204462]
[1767710255711,0.002,3291.7,3290.4,0.773]
[1767710256028,0.002,3291.7,3290.3,2.03204462]
[1767710256322,0.002,3291.7,3290.5,0.773]
[1767710256746,0.002,3291.7,3290.3,2.01380227]
[1767710256934,0.002,3291.7,3290.4,0.20138023]
[1767710257349,0.03997429,3291.7,3290.2,3.03923957]
[1767710257546,0.03997429,3291.7,3290.3,3.03917213]
[1767710257752,6.0774024,3292.0,3290.0,0.773]
[1767710257753,0.002,3292.0,3290.6,2.01380227]
[1767710258060,6.27391095,3292.8,3291.0,2.01380227]
[1767710258268,0.03787938,3292.7,3291.0,2.01380227]
[1767710258422,0.03787938,3292.7,3291.1,0.773]
[1767710259114,0.03787938,3292.7,3290.6,0.60781036]
[1767710259115,9.11134056,3292.6,3290.7,3.03878699]
[1767710259315,0.03796507,3292.5,3290.8,3.03872511]
[1767710259638,0.792,3292.4,3291.0,3.03853518]
[1767710259840,0.792,3292.4,3290.5,0.773]
[1767710259841,0.2,3292.8,3291.2,3.03840544]
[1767710260038,3.23696269,3292.8,3291.3,0.773]
[1767710261247,6.27392538,3292.8,3291.4,3.03822081]
[1767710261666,6.27392538,3292.8,3291.4,6.07644162]
[1767710261967,6.27392538,3292.8,3291.5,0.68494416]
[1767710262135,6.27392538,3292.8,3291.5,1.45794416]
[1767710262330,3.23696269,3292.8,3291.5,1.45794416]
[1767710262536,6.27392538,3292.8,3291.5,1.45794416]
[1767710263265,0.82996276,3292.7,3290.9,2.01380227]
[1767710263966,0.82996276,3292.7,3290.8,3.81174494]
[1767710263967,0.792,3292.7,3290.8,3.81174494]
[1767710264197,0.792,3292.7,3290.9,2.01380227]
[1767710264382,0.82996276,3292.7,3290.9,2.01380227]
[1767710264581,0.82996276,3292.7,3290.9,2.78680227]
[1767710264784,0.82996276,3292.7,3291.0,0.27868023]
[1767710264983,0.82996276,3292.7,3290.3,2.01380227]
[1767710265166,12.14845408,3292.6,3290.8,0.001]
[1767710265363,0.002,3292.4,3290.8,0.001]
[1767710266299,0.03996622,3292.4,3290.8,0.001]
[1767710266683,2.06941734,3292.3,3290.8,0.001]
[1767710266866,0.05621088,3292.2,3290.8,0.001]
[1767710267067,0.05621088,3292.2,3289.6,0.22340897]
[1767710267068,2.06941734,3291.7,3289.6,0.22340897]
[1767710267373,11.18380287,3291.5,3289.4,0.773]
[1767710267962,9.11438553,3291.5,3289.4,0.773]
[1767710268477,12.15251404,3291.5,3289.4,0.773]
[1767710268677,0.03797776,3291.4,3289.3,0.773]
[1767710269360,9.11493936,3291.3,3289.3,3.81313576]
[1767710269562,15.37049483,3291.3,3289.2,3.04019901]
[1767710269799,12.33218171,3291.3,3289.3,3.04011775]
[1767710270372,15.37049483,3291.3,3289.2,3.81321646]
[1767710270573,0.01824235,3291.1,3289.2,0.773]
[1767710270789,0.792,3291.0,3289.2,3.04019517]
[1767710271295,12.15472968,3290.9,3288.2,0.01824235]
[1767710271468,15.37197203,3290.9,3288.7,3.04062276]
[1767710271695,2.06941734,3290.8,3288.8,0.30406228]
[1767710271897,3.21724235,3290.7,3288.8,0.30406228]
[1767710272197,3.21724235,3290.7,3287.7,0.001]
[1767710272198,0.01824235,3289.9,3287.7,0.001]
[1767710272390,0.792,3289.8,3287.8,3.81451455]
[1767710272593,0.01824235,3289.7,3288.1,3.04124658]
[1767710273089,0.792,3289.8,3288.2,3.04117617]
[1767710273424,9.11937258,3289.7,3288.3,0.30521762]
[1767710273601,9.11937258,3289.7,3288.3,0.001]
[1767710273792,12.17740579,3289.7,3287.7,0.001]
[1767710274128,0.01824235,3289.4,3287.7,0.001]
[1767710274290,2.06941734,3289.1,3287.7,0.001]
[1767710274491,2.06941734,3288.9,3287.0,0.773]
[1767710274693,2.06941734,3288.9,3287.0,3.0422874]
[1767710274936,2.08765969,3288.9,3286.9,3.04234106]
[1767710275118,2.06941734,3288.7,3285.9,2.01380227]
[1767710275342,2.06941734,3288.3,3286.2,3.04302842]
[1767710275496,0.792,3288.2,3286.2,3.04302842]
[1767710275820,0.792,3288.2,3286.2,9.12908526]
[1767710276337,3.04093481,3288.5,3286.2,9.12908526]
[1767710276338,0.792,3288.6,3286.3,2.17380227]
[1767710276487,2.83681904,3288.6,3286.4,1.13028875]
[1767710277293,2.83681904,3288.6,3286.5,0.773]
[1767710277624,9.1227003,3288.5,3286.5,3.81566313]
[1767710277833,3.0409001,3288.5,3286.5,11.9153759]
[1767710277987,3.0409001,3288.5,3286.6,3.31877796]
[1767710278192,0.792,3288.6,3286.7,2.01421149]
[1767710278413,6.8737054,3288.6,3286.7,2.01421149]
[1767710278791,0.792,3288.6,3286.7,2.01421149]
[1767710278992,0.792,3288.6,3286.9,2.01421149]
[1767710279217,0.20583771,3288.9,3286.9,2.01421149]
[1767710279430,0.20583771,3288.9,3286.9,2.03245384]
[1767710279630,3.24637082,3288.9,3287.1,2.01421149]
[1767710279830,6.28690393,3288.9,3287.2,0.773]
[1767710280030,6.28690393,3288.9,3287.3,0.27872115]
[1767710280226,6.28690393,3288.9,3287.0,6.0845756]
[1767710280438,6.28690393,3288.9,3287.0,9.1268634]
[1767710280628,6.28690393,3288.9,3287.0,6.0845756]
[1767710280824,0.20583771,3288.9,3287.0,9.1268634]
[1767710281047,3.03887906,3290.7,3287.5,2.01421149]
[1767710281218,6.87047308,3290.3,3287.7,2.01421149]
[1767710281418,0.20533805,3289.9,3287.8,2.0619008]
[1767710281657,0.20533805,3289.9,3288.5,2.04365845]
[1767710281840,0.20533805,3289.9,3288.6,0.773]
[1767710282018,0.20533805,3289.9,3288.7,0.773]
[1767710282549,3.03832687,3291.3,3288.8,2.04365845]
[1767710282735,9.94519638,3291.2,3289.0,2.04365845]
[1767710282936,9.90721632,3291.2,3288.9,1.05466585]
[1767710283114,0.03798122,3291.1,3288.9,0.773]
[1767710283317,6.07681088,3291.2,3288.9,2.81665845]
[1767710283514,0.82998122,3291.1,3288.9,2.81665845]
[1767710283731,9.11577027,3291.0,3289.0,3.04043782]
[1767710283933,0.01824235,3290.7,3288.2,2.04365845]
[1767710284133,0.03798699,3290.6,3288.9,3.04053026]
[1767710284355,0.03798814,3290.5,3288.6,0.773]
[1767710284531,0.792,3290.4,3288.6,3.81380566]
[1767710284742,0.03799045,3290.3,3288.7,0.38138057]
[1767710284925,6.13279127,3290.8,3288.9,6.08105118]
[1767710285126,6.13279127,3290.8,3288.6,0.773]
[1767710285349,6.13279127,3290.8,3288.6,3.81373078]
[1767710285350,0.82998583,3290.7,3288.6,3.81373078]
[1767710285556,0.82998583,3290.7,3288.6,0.773]
[1767710285753,12.15583784,3290.6,3288.5,3.81388058]
[1767710285931,0.03798814,3290.5,3288.6,6.08158957]
[1767710286133,0.03798814,3290.5,3288.6,3.04078194]
[1767710286347,0.792,3290.4,3288.6,6.08158957]
[1767710286757,0.792,3290.4,3288.6,11.16605565]
[1767710286955,6.07791892,3290.6,3288.7,3.23756402]
[1767710287167,0.82998814,3290.5,3288.7,1.19390557]
[1767710287560,0.82998814,3290.5,3288.6,6.85458957]
[1767710287761,6.15103362,3290.9,3288.6,6.85458957]
[1767710287762,3.03914417,3290.4,3288.7,2.04365845]
[1767710288074,3.83108856,3290.5,3288.7,2.04365845]
[1767710288272,0.2048053,3291.3,3288.9,2.04365845]
[1767710288476,0.2048053,3291.3,3289.5,2.04365845]
[1767710288658,0.02024235,3292.4,3289.4,0.01824235]
[1767710288659,3.03739027,3292.3,3290.0,0.01824235]
[1767710288857,0.002,3292.4,3290.3,0.01824235]
[1767710289084,3.03932649,3292.4,3290.6,2.04365845]
[1767710289264,6.07665298,3292.4,3290.7,0.773]
[1767710289478,0.03796737,3292.3,3290.8,0.28166585]
[1767710289655,3.03748253,3292.2,3290.9,3.03868242]
[1767710289983,0.03796968,3292.1,3290.8,0.28166585]
[1767710290182,3.03748253,3292.2,3290.8,6.07754788]
[1767710290400,0.002,3292.4,3290.8,6.07754788]
[1767710290401,3.03934599,3292.4,3290.8,6.07754788]
[1767710290683,0.002,3292.4,3290.8,6.07754788]
[1767710290850,0.002,3292.4,3290.8,11.15998109]
[1767710290851,0.002,3291.8,3290.8,11.15998109]
[1767710291055,6.11463484,3292.4,3290.9,1.88899811]
[1767710291588,9.15196915,3292.4,3290.6,3.03895899]
[1767710291786,9.11400293,3292.4,3290.3,0.773]
[1767710292287,12.15133724,3292.4,3290.3,0.773]
[1767710292487,0.01824235,3292.3,3290.3,0.773]
[1767710292786,3.199,3292.3,3290.3,0.773]
[1767710292990,0.002,3292.4,3290.5,2.04365845]
[1767710293187,0.002,3292.7,3291.2,2.04365845]
[1767710293362,0.002,3292.7,3291.3,2.81665845]
[1767710293687,3.03903396,3292.7,3290.8,0.773]
[1767710293889,0.794,3292.7,3290.9,9.11604726]
[1767710294205,0.002,3292.7,3291.0,1.19327057]
[1767710294596,0.002,3292.7,3291.1,2.04365845]
[1767710294978,0.002,3292.7,3291.2,0.773]
[1767710295596,0.002,3292.7,3291.1,2.0619008]
[1767710295597,0.002,3292.7,3291.1,2.04365845]
[1767710295805,0.002,3292.7,3291.4,6.07644162]
[1767710296004,0.002,3292.7,3291.4,3.03822081]
[1767710296193,0.002,3292.7,3291.3,3.81130048]
[1767710296398,0.002,3292.7,3291.3,6.8496136]
[1767710296579,0.002,3292.7,3291.3,0.773]
[1767710296782,0.03996276,3292.7,3291.3,1.08703514]
[1767710297093,0.03996276,3292.7,3291.3,3.8112876]
[1767710297311,0.03996276,3292.7,3290.5,2.0619008]
[1767710297614,0.03996276,3292.7,3290.7,3.03880771]
[1767710297920,9.11161731,3292.5,3290.7,3.03886711]
[1767710298212,0.03796622,3292.4,3290.7,6.07773422]
[1767710298512,0.03796622,3292.4,3290.8,0.68507342]
[1767710299213,0.002,3292.7,3290.9,2.04365845]
[1767710299394,0.002,3292.7,3291.1,2.04365845]
[1767710299590,6.0760978,3292.7,3291.2,0.773]
[1767710299789,3.0390489,3292.7,3291.2,0.773]
[1767710299994,0.002,3292.7,3291.3,6.74129208]
[1767710300195,0.002,3292.7,3291.3,3.70297896]
[1767710300490,0.002,3292.7,3291.3,1.43766584]
[1767710300895,0.002,3292.7,3291.3,0.66466584]
[1767710301484,0.002,3292.7,3291.2,3.03839634]
[1767710301903,0.03996276,3292.7,3291.1,0.773]
[1767710302934,0.03996276,3292.7,3290.5,2.04365845]